bitfinex/quotes_SOLUSD_20260314
["timestamp","ask_amount","ask_price","bid_price","bid_amount"]
[1773484497931,0.4581119,86.728,86.679,0.09999998]
[1773484499637,0.4581119,86.728,86.68,0.09999998]
[1773484500221,0.4581119,86.726,86.68,0.09999998]
[1773484500426,0.4581119,86.726,86.679,11.53681976]
[1773484501744,0.4581119,86.724,86.679,11.53681976]
[1773484501921,0.4581119,86.724,86.664,11.53881657]
[1773484503826,0.4581119,86.721,86.634,0.29999998]
[1773484504032,0.4581119,86.719,86.615,0.29999998]
[1773484504232,0.4581119,86.719,86.617,0.29999998]
[1773484504426,144.13708012,86.723,86.617,0.29999998]
[1773484504427,0.4581119,86.714,86.617,0.29999998]
[1773484504839,0.4581119,86.712,86.617,0.29999998]
[1773484505027,0.4581119,86.706,86.606,0.29999998]
[1773484505229,0.4581119,86.697,86.606,0.29999998]
[1773484505429,0.4581119,86.692,86.606,0.29999998]
[1773484506348,0.4581119,86.68,86.589,11.54875205]
[1773484506529,0.4581119,86.67,86.589,11.54875205]
[1773484506734,0.4581119,86.665,86.589,11.54875205]
[1773484507351,0.4581119,86.66,86.589,11.54875205]
[1773484507649,2.95506722,86.634,86.542,0.47801755]
[1773484507845,0.4581119,86.627,86.542,0.47801755]
[1773484508032,0.4581119,86.622,86.542,0.47801755]
[1773484508234,0.4581119,86.617,86.544,0.47801755]
[1773484510151,0.4581119,86.615,86.547,0.47801755]
[1773484510541,0.4581119,86.613,86.549,0.47801755]
[1773484511352,0.4581119,86.613,86.551,0.47801755]
[1773484512455,28.85934195,86.628,86.551,0.47801755]
[1773484512456,0.48900878,86.611,86.551,40.43858533]
[1773484514499,0.48900878,86.609,86.552,0.02198243]
[1773484515601,0.48900878,86.609,86.554,0.02198243]
[1773484515913,0.48900878,86.609,86.555,0.02198243]
[1773484517190,0.48900878,86.609,86.557,0.02198243]
[1773484518408,0.48900878,86.62,86.558,0.02198243]
[1773484518585,0.48900878,86.62,86.56,0.02198243]
[1773484522099,0.48900878,86.62,86.563,0.02198243]
[1773484524802,0.48900878,86.62,86.567,0.02198243]
[1773484527537,0.48900878,86.62,86.568,0.02198243]
[1773484527736,0.48900878,86.62,86.57,0.02198243]
[1773484528621,0.48900878,86.62,86.572,0.02198243]
[1773484529735,0.48900878,86.62,86.573,0.02198243]
[1773484531036,0.48900878,86.62,86.575,0.02198243]
[1773484531643,0.48900878,86.62,86.577,0.02198243]
[1773484534827,0.48900878,86.62,86.578,0.02198243]
[1773484537138,11.5396155,86.658,86.58,0.46333936]
[1773484537328,103.4,86.657,86.582,0.46333936]
[1773484539146,0.47236094,86.654,86.584,0.46333936]
[1773484541831,0.47236094,86.652,86.586,0.46333936]
[1773484542147,0.47236094,86.652,86.588,0.46333936]
[1773484544229,0.47236094,86.65,86.59,0.46333936]
[1773484545851,0.47236094,86.648,86.592,0.46333936]
[1773484546451,0.47236094,86.648,86.594,0.46333936]
[1773484548555,0.49308535,86.646,86.596,0.4806752]
[1773484551440,0.49308535,86.646,86.598,0.47167643]
[1773484553352,0.49308535,86.646,86.601,0.47167643]
[1773484553850,0.4618634,86.645,86.601,0.47167643]
[1773484554535,0.4618634,86.645,86.603,0.47167643]
[1773484556958,0.4618634,86.645,86.587,2.95506722]
[1773484556959,0.4618634,86.643,86.546,0.47167643]
[1773484557145,4.82477569,86.631,86.546,0.47167643]
[1773484557455,0.4618634,86.626,86.546,0.47167643]
[1773484557847,0.4618634,86.621,86.546,0.47167643]
[1773484558237,0.4618634,86.617,86.546,0.47167643]
[1773484559055,0.4618634,86.615,86.548,0.47167643]
[1773484561060,0.4618634,86.613,86.55,0.47167643]
[1773484561758,0.4618634,86.613,86.553,0.47167643]
[1773484562060,0.4618634,86.613,86.56,0.47167643]
[1773484562261,0.4618634,86.637,86.565,0.47167643]
[1773484563161,0.3464234,86.636,86.596,0.47167643]
[1773484565350,0.4618634,86.634,86.598,0.47167643]
[1773484565659,0.4618634,86.634,86.594,0.47167643]
[1773484565866,0.4618634,86.634,86.595,0.47167643]
[1773484567965,0.4618634,86.634,86.597,0.47167643]
[1773484570069,0.4618634,86.634,86.599,0.47167643]
[1773484573557,0.4618634,86.634,86.601,0.47167643]
[1773484576162,0.4618634,86.632,86.603,0.47167643]
[1773484578556,0.4618634,86.63,86.604,12.0184872]
[1773484578773,0.4618634,86.63,86.605,0.47167643]
[1773484582168,0.47637484,86.628,86.606,11.54654411]
[1773484584968,0.47637484,86.628,86.606,0.49074337]
[1773484587083,0.47637484,86.628,86.607,11.54641079]
[1773484587284,0.47637484,86.628,86.608,0.49074337]
[1773484587481,0.47637484,86.641,86.608,0.49074337]
[1773484588280,0.47637484,86.646,86.608,0.49074337]
[1773484589383,0.47637484,86.646,86.611,0.49074337]
[1773484589579,0.47637484,86.646,86.613,0.49074337]
[1773484589887,0.47637484,86.646,86.615,0.49074337]
[1773484590782,28.84621007,86.667,86.615,0.49074337]
[1773484591082,28.84258343,86.678,86.617,0.49074337]
[1773484591387,11.53801776,86.67,86.619,0.49074337]
[1773484592886,0.09719395,86.669,86.619,0.49074337]
[1773484598290,0.09719395,86.669,86.632,0.49074337]
[1773484598672,0.09719395,86.669,86.641,0.49074337]
[1773484598871,0.09719395,86.669,86.651,0.49074337]
[1773484599080,11.53747951,86.675,86.651,0.49074337]
[1773484599369,0.09719395,86.674,86.651,0.49074337]
[1773484600278,0.09719395,86.674,86.652,11.54041453]
[1773484601185,0.09719395,86.674,86.651,0.49074337]
[1773484601389,0.09719395,86.674,86.652,11.54041453]
[1773484601777,0.09719395,86.674,86.652,12.0311579]
[1773484602094,0.09719395,86.674,86.653,0.49074337]
[1773484602895,0.09719395,86.674,86.648,0.49074337]
[1773484604088,0.09719395,86.674,86.651,0.49074337]
[1773484606093,0.09719395,86.687,86.653,0.49074337]
[1773484606798,0.09719395,86.687,86.652,40.39145085]
[1773484606799,0.09719395,86.687,86.655,0.49074337]
[1773484607404,0.09719395,86.687,86.661,0.49074337]
[1773484610198,0.09719395,86.687,86.662,0.48840902]
[1773484612684,0.09719395,86.699,86.664,0.47200037]
[1773484613308,0.09719395,86.689,86.664,0.47200037]
[1773484613975,0.09719395,86.699,86.664,0.47200037]
[1773484615191,0.09719395,86.699,86.666,0.47200037]
[1773484615894,0.09719395,86.699,86.671,0.47200037]
[1773484616191,11.53402537,86.7,86.671,0.47200037]
[1773484617988,11.53336024,86.705,86.68,3.77747032]
[1773484618198,0.09719395,86.704,86.681,0.47200037]
[1773484619882,0.09719395,86.699,86.669,7.36]
[1773484620082,0.09719395,86.699,86.67,0.47200037]
[1773484620487,0.09719395,86.698,86.67,0.47200037]
[1773484620979,11.53415841,86.699,86.66,3.7734986]
[1773484620980,0.09719395,86.689,86.661,0.47200037]
[1773484622503,0.09719395,86.688,86.661,0.47200037]
[1773484624178,0.09719395,86.688,86.663,0.47200037]
[1773484625200,40.36955443,86.699,86.663,0.47200037]
[1773484625201,0.09719395,86.698,86.663,0.47200037]
[1773484627080,0.09719395,86.698,86.665,0.47200037]
[1773484627598,0.09719395,86.698,86.664,11.53881657]
[1773484627599,11.53415841,86.699,86.671,0.47200037]
[1773484628296,11.53282819,86.709,86.681,0.47200037]
[1773484629989,0.19719395,86.71,86.683,0.47200037]
[1773484630206,0.09719395,86.709,86.683,0.47200037]
[1773484630400,0.1,86.71,86.683,0.47200037]
[1773484632500,11.53282819,86.709,86.683,0.47200037]
[1773484632802,11.63002214,86.709,86.683,0.47200037]
[1773484633102,0.09719395,86.708,86.683,0.47200037]
[1773484633484,0.09719395,86.708,86.672,7.36]
[1773484633485,0.09719395,86.699,86.672,7.36]
[1773484633687,0.09719395,86.699,86.606,61.6]
[1773484633688,0.09719395,86.689,86.663,0.47200037]
[1773484634409,3.87069255,86.68,86.658,0.47200037]
[1773484634613,0.09719395,86.678,86.658,0.47200037]
[1773484637092,0.09719395,86.678,86.659,12.0114827]
[1773484637996,0.09719395,86.683,86.66,0.47200037]
[1773484639115,0.09719395,86.688,86.66,0.47200037]
[1773484639910,0.09719395,86.688,86.654,11.54009195]
[1773484640701,0.09719395,86.688,86.655,0.47200037]
[1773484642099,0.09719395,86.688,86.656,11.53988183]
[1773484642305,0.09719395,86.688,86.657,0.46619077]
[1773484644715,0.09719395,86.688,86.659,0.46619077]
[1773484651829,3.7734986,86.68,86.659,0.46619077]
[1773484652210,11.53681976,86.679,86.659,0.46619077]
[1773484652405,11.63401371,86.679,86.659,0.46619077]
[1773484653427,0.09719395,86.678,86.651,0.46619077]
[1773484658418,0.09719395,86.689,86.653,0.46619077]
[1773484658812,3.7734986,86.69,86.653,0.46619077]
[1773484659024,0.09719395,86.694,86.653,0.46619077]
[1773484659222,3.7734986,86.69,86.653,0.46619077]
[1773484660127,11.53548893,86.689,86.655,0.46619077]
[1773484663330,3.7734986,86.69,86.657,0.46619077]
[1773484663634,0.09719395,86.689,86.657,0.46619077]
[1773484665832,0.09719395,86.679,86.658,11.5396155]
[1773484666033,11.53548893,86.689,86.58,46.1995185]
[1773484666034,0.09719395,86.669,86.641,7.36]
[1773484666252,2.95506722,86.686,86.588,69.26]
[1773484666253,0.49151719,86.649,86.622,7.36]
[1773484666534,3.7734986,86.64,86.611,11.54587754]
[1773484668023,3.7734986,86.64,86.612,0.46619077]
[1773484670630,3.7734986,86.64,86.614,0.45685917]
[1773484671745,0.49151719,86.641,86.614,0.45685917]
[1773484672243,0.49151719,86.641,86.616,0.49033609]
[1773484672744,11.54201292,86.64,86.616,0.49033609]
[1773484673946,15.31551152,86.64,86.616,0.49033609]
[1773484674247,15.31551152,86.64,86.617,11.54507775]
[1773484674546,15.31551152,86.64,86.618,0.49033609]
[1773484674729,11.54201292,86.64,86.618,0.49033609]
[1773484677247,0.49764036,86.639,86.618,0.49033609]
[1773484677547,0.49764036,86.629,86.57,3.9734986]
[1773484677736,0.49764036,86.617,86.594,0.49033609]
[1773484679628,12.04274461,86.617,86.594,0.49033609]
[1773484681524,0.49764036,86.642,86.601,0.49033609]
[1773484681729,0.49764036,86.662,86.631,0.49033609]
[1773484682255,3.78167675,86.66,86.631,0.49033609]
[1773484682553,4.27931711,86.66,86.631,0.49033609]
[1773484683141,0.49764036,86.668,86.633,0.49033609]
[1773484686031,11.53841715,86.667,86.635,0.49033609]
[1773484686241,12.03605751,86.667,86.635,0.49033609]
[1773484686448,0.49764036,86.666,86.635,0.49033609]
[1773484688536,11.53841715,86.667,86.637,0.49033609]
[1773484689148,12.03605751,86.667,86.637,0.49033609]
[1773484691743,3.78167675,86.67,86.641,0.49033609]
[1773484692253,11.53815089,86.669,86.641,0.49033609]
[1773484692450,0.49764036,86.668,86.641,0.49033609]
[1773484693151,11.53841715,86.667,86.642,11.54174649]
[1773484693454,11.5375931,86.674,86.643,0.49033609]
[1773484697356,11.5375931,86.674,86.645,0.49033609]
[1773484697949,12.03523346,86.674,86.645,0.49033609]
[1773484699159,12.03523346,86.674,86.646,11.54121367]
[1773484699351,12.03523346,86.674,86.647,0.49033609]
[1773484700861,0.72100001,86.676,86.651,0.49033609]
[1773484701372,0.72100001,86.676,86.653,0.47692659]
[1773484701556,11.53664887,86.681,86.653,0.47692659]
[1773484702677,3.78167675,86.68,86.654,11.54014817]
[1773484702853,3.78167675,86.68,86.655,0.47692659]
[1773484705184,4.24280289,86.69,86.657,0.47692659]
[1773484705367,0.46112614,86.689,86.657,0.47692659]
[1773484706300,0.46112614,86.669,86.627,2.95506722]
[1773484706574,98.0516559,86.689,86.618,0.47692659]
[1773484706575,0.46112614,86.639,86.618,0.47692659]
[1773484709662,7.36,86.672,86.608,0.47692659]
[1773484709663,0.46112614,86.629,86.608,0.47692659]
[1773484709862,4.24280289,86.62,86.6,0.47692659]
[1773484717870,0.46112614,86.62,86.6,0.47692659]
[1773484718073,0.46112614,86.626,86.602,0.47692659]
[1773484718666,3.78167675,86.63,86.602,0.47692659]
[1773484718982,0.46112614,86.628,86.602,0.47692659]
[1773484719876,11.54347851,86.629,86.604,0.47692659]
[1773484720078,11.54347851,86.629,86.604,7.83692659]
[1773484720384,11.54347851,86.629,86.605,0.47692659]
[1773484721980,11.54347851,86.629,86.604,7.36]
[1773484721981,0.46112614,86.633,86.607,0.47692659]
[1773484724494,11.54307876,86.632,86.608,11.54627748]
[1773484724668,11.54307876,86.632,86.609,0.47692659]
[1773484728684,11.54307876,86.632,86.611,0.47690947]
[1773484729384,0.48509037,86.631,86.611,0.47690947]
[1773484731286,0.46557664,86.636,86.613,0.45872069]
[1773484733191,0.46557664,86.634,86.613,0.45872069]
[1773484733388,0.46557664,86.629,86.613,0.45872069]
[1773484737396,4.24725339,86.64,86.613,0.45872069]
[1773484738392,4.24725339,86.64,86.614,11.54547763]
[1773484738596,4.24725339,86.64,86.615,0.45872069]
[1773484739694,4.24725339,86.64,86.617,0.45872069]
[1773484739998,11.54127444,86.646,86.617,0.45872069]
[1773484740888,11.54127444,86.646,86.619,0.45872069]
[1773484741496,12.00685108,86.646,86.619,0.45872069]
[1773484743288,3.77920264,86.64,86.621,0.45872069]
[1773484743484,0.46557664,86.639,86.621,0.45872069]
[1773484744899,3.77920264,86.64,86.621,0.45872069]
[1773484745293,12.00757176,86.641,86.621,0.45872069]
[1773484745695,0.46557664,86.64,86.621,0.45872069]
[1773484746202,0.46557664,86.656,86.622,0.45872069]
[1773484746513,12.00505897,86.659,86.623,0.45872069]
[1773484748986,0.46557664,86.658,86.625,0.45872069]
[1773484750906,11.53894972,86.663,86.632,11.54307876]
[1773484751105,11.53894972,86.663,86.633,0.45872069]
[1773484751688,0.46557664,86.667,86.633,0.45872069]
[1773484752110,0.46557664,86.667,86.641,0.45872069]
[1773484753007,0.46557664,86.667,86.643,0.45872069]
[1773484755206,0.46557664,86.667,86.645,0.45872069]
[1773484756505,0.46557664,86.667,86.636,7.36]
[1773484756506,0.46557664,86.659,86.636,7.36]
[1773484756708,11.53855029,86.666,86.622,28.86077638]
[1773484756709,0.46557664,86.649,86.625,0.45872069]
[1773484758595,0.46557664,86.647,86.626,0.45872069]
[1773484759807,0.46557664,86.663,86.626,0.45872069]
[1773484760015,3.77920264,86.66,86.626,0.45872069]
[1773484760516,4.24477928,86.66,86.626,0.45872069]
[1773484761510,15.78413756,86.66,86.628,0.49663845]
[1773484762128,15.80649854,86.66,86.628,0.49663845]
[1773484762316,0.48793762,86.659,86.628,0.49663845]
[1773484765218,0.48793762,86.659,86.629,11.54347851]
[1773484765516,0.48793762,86.659,86.63,0.49663845]
[1773484765897,11.5396155,86.658,86.63,0.49663845]
[1773484767913,11.5396155,86.658,86.632,0.49663845]
[1773484768324,0.48793762,86.664,86.632,0.49663845]
[1773484769420,12.02678346,86.664,86.632,0.49663845]
[1773484771109,0.48793762,86.663,86.633,11.54294552]
[1773484771315,0.48793762,86.663,86.634,0.49663845]
[1773484772120,11.53815089,86.669,86.634,0.49663845]
[1773484772121,0.48793762,86.659,86.634,0.49663845]
[1773484773607,0.48793762,86.659,86.635,11.54267905]
[1773484773811,0.48793762,86.676,86.636,0.49663845]
[1773484774009,0.48793762,86.669,86.636,0.49663845]
[1773484775014,0.48793762,86.669,86.64,3.77920264]
[1773484775214,0.48793762,86.669,86.642,0.49663845]
[1773484777229,0.48793762,86.669,86.643,11.54161328]
[1773484777426,0.48793762,86.669,86.644,0.49663845]
[1773484777830,3.77920264,86.68,86.643,11.54161328]
[1773484777831,0.48793762,86.685,86.651,0.49663845]
[1773484779634,0.48793762,86.683,86.653,0.49663845]
[1773484781613,11.53642047,86.682,86.655,0.49663845]
[1773484781812,32.61761681,86.69,86.68,0.49663845]
[1773484781813,11.53538383,86.69,86.68,0.49663845]
[1773484782017,0.48793762,86.697,86.68,0.49663845]
[1773484782218,0.48793762,86.697,86.671,0.49663845]
[1773484784834,0.48793762,86.689,86.661,7.36]
[1773484785135,0.48793762,86.689,86.657,7.36]
[1773484786736,0.48793762,86.687,86.658,11.5396155]
[1773484786936,0.48793762,86.687,86.659,0.49663845]
[1773484788036,0.48793762,86.687,86.658,11.5396155]
[1773484788238,0.48793762,86.687,70.403,1.0]
[1773484788239,0.48793762,86.679,86.631,0.49663845]
[1773484788421,40.374677,86.688,86.631,0.49663845]
[1773484788422,0.47079034,86.669,86.631,0.49663845]
[1773484788932,0.47079034,86.667,86.633,0.45875705]
[1773484789434,0.47079034,86.667,86.632,11.54307876]
[1773484789435,0.47079034,86.667,86.64,0.45875705]
[1773484790320,0.47079034,86.665,86.64,0.45875705]
[1773484793041,11.53881657,86.664,86.64,0.45875705]
[1773484793341,0.45820982,86.663,86.64,0.45875705]
[1773484794050,0.45820982,86.663,86.641,11.54187971]
[1773484794256,0.45820982,86.663,86.641,12.01194444]
[1773484794944,0.45820982,86.663,86.642,0.47006473]
[1773484795845,0.45820982,86.689,86.651,0.47006473]
[1773484797448,0.45820982,86.688,86.653,0.47006473]
[1773484800632,0.45820982,86.688,86.628,7.36]
[1773484800633,0.45820982,86.669,86.638,0.47006473]
[1773484803151,0.45820982,86.667,86.639,12.01221087]
[1773484804153,0.45820982,86.667,86.639,11.54214614]
[1773484804349,0.45820982,86.667,86.639,12.01221087]
[1773484804555,11.53828402,86.668,86.615,0.47006473]
[1773484804556,0.45820982,86.649,86.615,0.47006473]
[1773484805340,0.45820982,86.647,86.617,0.47006473]
[1773484805752,0.45820982,86.629,86.59,3.77753455]
[1773484805953,0.45820982,86.619,86.581,0.47006473]
[1773484806136,0.45820982,86.619,86.591,0.47006473]
[1773484806952,0.45820982,86.619,86.581,0.47006473]
[1773484807354,0.45820982,86.617,86.583,0.47006473]
[1773484808352,0.45820982,86.617,86.591,0.47006473]
[1773484808558,11.54494446,86.618,86.591,0.47006473]
[1773484809459,57.7047364,86.648,86.59,3.77753455]
[1773484809460,0.45820982,86.623,86.593,0.47006473]
[1773484812248,0.45820982,86.623,86.594,11.54814421]
[1773484812460,0.45820982,86.623,86.595,0.47006473]
[1773484813460,0.45820982,86.623,86.597,0.47006473]
[1773484816365,0.45820982,86.623,86.599,0.47006473]
[1773484819267,0.45820982,86.623,86.6,12.01740884]
[1773484819467,0.45820982,86.623,86.601,0.47006473]
[1773484822474,0.45820982,86.623,86.59,3.77753455]
[1773484822475,0.45820982,86.623,86.603,0.49404728]
[1773484823270,0.46167682,86.628,86.603,0.49404728]
[1773484823477,11.54281242,86.634,86.603,0.49404728]
[1773484823777,0.46167682,86.636,86.603,0.49404728]
[1773484823980,0.46167682,86.636,86.611,0.49404728]
[1773484824283,0.46167682,86.646,86.611,0.49404728]
[1773484824462,0.46167682,86.644,86.613,0.49404728]
[1773484824864,0.46167682,86.639,86.613,0.49404728]
[1773484826580,0.46167682,86.629,86.606,0.49404728]
[1773484827792,0.46167682,86.637,86.606,0.49404728]
[1773484830380,0.46167682,86.635,86.608,0.49404728]
[1773484831578,15.7812529,86.64,86.608,0.49404728]
[1773484831776,12.00371835,86.64,86.611,0.49404728]
[1773484832666,12.00371835,86.64,86.613,0.49404728]
[1773484832866,0.46167682,86.646,86.613,0.49404728]
[1773484833587,0.46167682,86.646,86.615,0.49404728]
[1773484834686,12.00302369,86.645,86.62,3.77753455]
[1773484834865,12.00302369,86.645,86.621,0.49404728]
[1773484835788,7.45747303,86.656,86.631,0.49404728]
[1773484836864,7.45747303,86.656,86.641,0.49404728]
[1773484838784,7.45747303,86.656,86.643,0.49404728]
[1773484839085,0.46167682,86.672,86.644,0.49404728]
[1773484839385,0.46167682,86.672,86.651,0.49404728]
[1773484840284,0.46167682,86.672,86.653,0.49404728]
[1773484840488,0.46167682,86.684,86.653,0.49404728]
[1773484841264,0.46167682,86.684,86.661,0.49404728]
[1773484841584,0.46167682,86.684,86.653,0.49404728]
[1773484844490,0.46167682,86.682,86.655,0.49404728]
[1773484844989,0.46167682,86.682,86.661,0.49404728]
[1773484847405,0.46167682,86.682,86.662,0.49404728]
[1773484851000,0.48632268,86.681,86.661,11.53914611]
[1773484851176,0.48632268,86.681,86.656,12.00400304]
[1773484851502,0.49792186,86.679,86.651,11.54043746]
[1773484852886,0.49792186,86.677,86.652,0.49088189]
[1773484855272,0.49792186,86.675,86.653,11.54028135]
[1773484855484,0.49792186,86.675,86.654,0.49088189]
[1773484857697,0.49792186,86.675,86.656,0.49088189]
[1773484858198,0.49792186,86.683,86.656,0.49088189]
[1773484858497,0.49792186,86.679,86.653,0.49088189]
[1773484858688,0.49792186,86.679,86.65,18.90063483]
[1773484858994,0.49792186,86.679,86.618,61.6]
[1773484858995,0.49792186,86.679,86.607,0.49088189]
[1773484859186,40.37747166,86.682,86.612,0.49088189]
[1773484859187,0.49792186,86.649,86.612,0.49088189]
[1773484860380,11.54094728,86.648,86.613,11.54561093]
[1773484860588,0.49792186,86.647,86.614,0.49088189]
[1773484863689,0.49792186,86.645,86.616,0.49088189]
[1773484867503,0.49792186,86.645,86.618,0.49088189]
[1773484869091,0.49792186,86.645,86.62,3.77900219]
[1773484869291,0.49792186,86.645,86.621,0.49088189]
[1773484871404,0.49792186,86.645,86.622,11.54441135]
[1773484871595,0.49792186,86.645,86.623,0.49088189]
[1773484871996,0.49792186,86.675,86.631,0.49088189]
[1773484872298,0.49792186,86.675,86.641,0.49088189]
[1773484873386,0.49792186,86.673,86.643,0.49088189]
[1773484873586,0.49792186,86.673,86.65,3.77900219]
[1773484873798,0.49792186,86.673,86.651,0.49088189]
[1773484877398,0.49792186,86.673,86.653,0.49088189]
[1773484879593,0.49792186,86.678,86.653,0.49088189]
[1773484880089,0.49792186,86.678,86.655,0.49088189]
[1773484882413,3.77900219,86.68,86.655,0.49088189]
[1773484882414,0.45552366,86.676,86.655,0.49088189]
[1773484883418,0.45552366,86.681,86.656,11.53988183]
[1773484883911,0.45552366,86.681,86.657,0.48170695]
[1773484884414,11.53668666,86.68,86.659,0.48170695]
[1773484884614,0.45552366,86.681,86.659,0.48170695]
[1773484885507,0.45552366,86.681,86.661,0.48170695]
[1773484886797,0.45552366,86.681,86.663,0.48170695]
[1773484886998,0.45552366,86.689,86.663,0.48170695]
[1773484888319,0.45552366,86.688,86.664,11.53881657]
[1773484888508,0.45552366,86.688,86.664,12.02052352]
[1773484888714,0.45552366,86.688,86.665,0.48170695]
[1773484889207,11.99049102,86.693,86.665,0.48170695]
[1773484889613,7.46,86.71,86.664,11.53881657]
[1773484889614,0.45552366,86.689,86.664,11.53881657]
[1773484890504,0.45552366,86.687,86.664,11.53881657]
[1773484891922,0.45552366,86.687,86.661,11.53921602]
[1773484892716,0.45552366,86.685,86.661,11.53921602]
[1773484894321,0.45552366,86.685,86.661,12.02092297]
[1773484895630,3.77900219,86.68,86.655,0.48170695]
[1773484895809,0.45552366,86.679,86.641,0.48170695]
[1773484897428,0.45552366,86.679,86.651,0.48170695]
[1773484897920,11.5368574,86.679,86.652,11.54041453]
[1773484898124,0.45552366,86.678,86.653,0.48170695]
[1773484903529,0.45552366,86.678,86.655,0.48170695]
[1773484904510,0.45552366,86.676,86.655,0.48170695]
[1773484905630,0.45552366,86.674,86.655,0.48170695]
[1773484916838,0.45097175,86.672,86.645,0.46441434]
[1773484918638,0.45097175,86.672,86.647,0.46441434]
[1773484918939,11.53788464,86.671,86.647,0.46441434]
[1773484919141,0.45097175,86.67,86.647,0.46441434]
[1773484920439,0.45097175,86.67,86.642,11.54172984]
[1773484920646,0.45097175,86.667,86.642,0.46441434]
[1773484922324,0.45097175,86.659,86.632,0.46441434]
[1773484922727,0.45097175,86.657,86.632,0.46441434]
[1773484925057,0.45097175,86.655,86.632,0.46441434]
[1773484927287,0.45097175,86.66,86.634,0.46441434]
[1773484929759,0.45097175,86.66,86.63,0.58478541]
[1773484931552,0.45097175,86.66,86.633,11.54294552]
[1773484931754,0.45097175,86.66,86.636,0.46441434]
[1773484933439,0.45097175,86.66,86.638,0.46441434]
[1773484934459,0.45097175,86.659,86.638,0.46441434]
[1773484936759,0.45097175,86.659,86.639,12.00656048]
[1773484937267,0.45097175,86.659,86.64,0.46441434]
[1773484938944,0.45097175,86.659,86.642,0.46441434]
[1773484939160,0.45097175,86.666,86.642,0.46441434]
[1773484940741,0.45097175,86.666,86.641,11.54187971]
[1773484940742,0.45097175,86.666,86.644,0.46441434]
[1773484940944,0.45097175,86.659,86.644,0.46441434]
[1773484941146,0.45097175,86.659,86.639,0.45780214]
[1773484946262,0.45097175,86.659,86.641,0.45780214]
[1773484949366,11.53815089,86.669,86.641,0.45780214]
[1773484949792,0.47276911,86.668,86.641,0.45780214]
[1773484950575,0.47276911,86.666,86.641,0.45780214]
[1773484952974,0.47276911,86.666,86.643,0.45780214]
[1773484956376,0.47276911,86.666,86.645,0.45780214]
[1773484957312,0.47276911,86.659,86.631,0.45780214]
[1773484958576,0.47276911,86.669,86.633,0.45780214]
[1773484960375,0.47276911,86.669,86.635,0.45780214]
[1773484960683,0.47276911,86.667,86.635,0.45780214]
[1773484962583,0.47276911,86.659,86.637,0.45780214]
[1773484963380,0.47276911,86.659,86.636,11.54254582]
[1773484963576,0.47276911,86.659,86.637,0.45780214]
[1773484964776,0.47276911,86.659,86.638,0.45780214]
[1773484965670,0.47276911,86.658,86.638,0.45780214]
[1773484966866,0.47276911,86.656,86.638,0.45780214]
[1773484967883,3.77742555,86.67,86.64,0.45780214]
[1773484969387,11.53815089,86.669,86.642,0.4726731]
[1773484969769,0.49974351,86.668,86.642,0.4726731]
[1773484972591,0.49974351,86.668,86.644,0.48614152]
[1773484974269,0.49974351,86.668,86.646,0.48614152]
[1773484975588,11.53712301,86.677,86.646,0.48614152]
[1773484976181,12.00291657,86.677,86.646,0.48614152]
[1773484976384,0.46579356,86.676,86.648,0.48614152]
[1773484977080,3.77742555,86.68,86.648,0.48614152]
[1773484977270,0.46579356,86.679,86.648,0.48614152]
[1773484979974,0.46579356,86.679,86.651,0.48614152]
[1773484980171,0.46579356,86.669,86.651,0.48614152]
[1773484981792,0.46579356,86.669,86.653,0.48614152]
[1773484983893,0.46579356,86.668,86.653,0.48614152]
[1773484989501,0.46579356,86.672,86.655,0.48614152]
[1773484993106,0.46579356,86.676,86.655,0.48614152]
[1773484995306,0.46579356,86.686,86.657,0.48614152]
[1773484995509,0.46579356,86.696,86.661,0.48614152]
[1773484995688,11.53442448,86.697,86.661,0.48614152]
[1773484995689,0.46579356,86.689,86.661,0.48614152]
[1773484999415,11.535622,86.688,86.662,11.53908287]
[1773484999612,0.46579356,86.687,86.663,0.48614152]
[1773485002494,0.45245878,86.685,86.663,0.48614152]
[1773485003615,0.45245878,86.685,86.664,11.53881657]
[1773485003797,0.45245878,86.685,86.665,0.49996494]
[1773485009516,0.45245878,86.683,86.665,0.49996494]
[1773485015319,0.45245878,86.69,86.667,0.49996494]
[1773485015517,0.45245878,86.689,86.667,0.49996494]
[1773485017526,0.45245878,86.687,86.667,0.49996494]
[1773485019926,0.45245878,86.691,86.669,0.49996494]
[1773485021931,0.45245878,86.689,86.669,0.49996494]
[1773485023428,11.535622,86.688,86.669,0.49996494]
[1773485023631,0.45245878,86.687,86.669,0.49996494]
[1773485024133,0.45245878,86.687,86.663,0.49996494]
[1773485026430,11.98834692,86.686,86.665,0.49996494]
[1773485026730,0.45245878,86.685,86.665,0.49996494]
[1773485027724,0.45245878,86.679,86.665,0.49996494]
[1773485027913,0.45245878,86.684,86.658,0.49996494]
[1773485028413,0.49720164,86.679,86.658,0.49996494]
[1773485029522,0.49720164,86.679,86.65,3.77637256]
[1773485029523,0.49720164,86.679,86.66,0.47146519]
[1773485030233,0.49720164,86.669,86.649,7.36]
[1773485030935,0.49720164,86.669,86.649,18.90069171]
[1773485031645,0.49720164,86.669,86.649,11.54069171]
[1773485032166,0.49720164,86.669,86.65,0.47288777]
[1773485036239,0.49001208,86.667,86.65,0.47288777]
[1773485037751,0.49001208,86.667,86.645,0.47288777]